Workbook

Sheet Data
A1: Problem 2, Re-sit examination, Prof. Milan Stanko (NTNU)
A3: GOR | B3: [Sm3/Sm3] | C3: 150
A4: pin,pipeline | B4: [bara] | C4: 120
A5: uptime | B5: [d/year] | C5: 365
A6: deno,sc | B6: [kg/m3] | C6: 800
A7: deng,sc | B7: [kg/m3] | C7: 0.8
A8: hadia,MPP | B8: [-] | C8: 0.6
A10: time (end of year) | B10: qo target | C10: Np | D10: pinlet,subseastation | E10: qo avail | F10: pin,pipe | G10: Dpchoke DpMPP | H10: mass flow | I10: Dhs | J10: Power, MPP
A11: [years] | B11: [sm3/d] | C11: [Sm3] | D11: [bara] | E11: [sm3/d] | F11: [bara] | G11: [bar] | H11: [kg/s] | I11: [kJ/kg] | J11: [kW]
A12: 0 | B12: 2531 | C12: 0 | D12: 129.9608827 | E12: =qo_available(C12,D12) -> 2531 | F12: =$C$4 -> 120 | G12: =D12-F12 -> 9.960882681
A13: 1 | B13: 2531 | C13: =C12+B12*(A13-A12)*$C$5 -> 923815 | D13: 120.291882 | E13: =qo_available(C13,D13) -> 2531 | F13: =$C$4 -> 120 | G13: =D13-F13 -> 0.2918820158
A14: 2 | B14: 2531 | C14: =C13+B13*(A14-A13)*$C$5 -> 1847630 | D14: 109.6027511 | E14: =qo_available(C14,D14) -> 2531 | F14: 120 | G14: -10.39724888 | H14: =(B14*$C$6+$C$3*B14*$C$7)/(24*3600) -> 26.95046296 | I14: =deltah_s(D14,G14*-1) -> 4.045454078 | J14: =I14*H14/$C$8 -> 181.7114338
A15: 3 | B15: 2487 | C15: 2771445 | D15: 100.2862156 | E15: =qo_available(C15,D15) -> 2487 | F15: 120 | G15: -19.7137844 | H15: 26.48194444 | I15: =deltah_s(D15,G15*-1) -> 7.904855475 | J15: 348.8932392
A16: 4 | B16: 2436 | C16: 3679200 | D16: 91.58271021 | E16: =qo_available(C16,D16) -> 2436 | F16: 120 | G16: -28.41728979 | H16: 25.93888889 | I16: =deltah_s(D16,G16*-1) -> 11.87369425 | J16: 513.3173932
A17: 5 | B17: 2467 | C17: 4568340 | D17: 77.92458617 | E17: =qo_available(C17,D17) -> 2467 | F17: 120 | G17: -42.07541383 | H17: =(B17*$C$6+$C$3*B17*$C$7)/(24*3600) -> 26.26898148 | I17: =deltah_s(D17,G17*-1) -> 19.34522804 | J17: 846.9657285
